[Event "SVK ECo-C Extraliga 2018-19"]
[Site "Slovakia"]
[Date "2018.11.10"]
[Round "1"]
[White "Haring, Viktor"]
[Black "Manik, Mikulas"]
[Result "1/2-1/2"]
[ECO "B69"]
[WhiteElo "2314"]
[BlackElo "2404"]
[Annotator "ChessBase"]
[PlyCount "70"]
[EventDate "2018.11.10"]
[EventType "team-tourn"]
[EventCountry "SVK"]
[SourceTitle "playchess.com"]
[Source "ChessBase"]
[SourceQuality "1"]
[WhiteTeam "Liptovska"]
[BlackTeam "Prakovce"]
[TimeControl "40/5400+30:1800+30"]

1. e4 {[%emt 0:00:00]} c5 {[%emt 0:00:00]} 2. Nf3 {[%emt 0:00:08]} d6 {[%emt 0:00:09]} 3. d4 {[%emt 0:00:29]} cxd4 {[%emt 0:00:02]} 4. Nxd4 {[%emt 0:00:16]} Nf6 {[%emt 0:00:04]} 5. Nc3 {[%emt 0:00:26]} Nc6 {[%emt 0:00:09]} 6. Bg5 {[%emt 0:01:57]} e6 {[%emt 0:02:43]} 7. Qd2 {[%emt 0:03:56]} a6 {[%emt 0:03:48]} 8. O-O-O {[%emt 0:02:14]} Bd7 {[%emt 0:00:03]} 9. f4 {[%emt 0:03:41]} Be7 {[%emt 0:00:11]} 10. Nf3 {[%emt 0:07:57]} b5 {[%emt 0:00:46]} 11. Bxf6 {[%emt 0:03:16]} gxf6 {[%emt 0:00:17]} 12. f5 {[%emt 0:06:56]} Qa5 {[%emt 0:04:14]} 13. Kb1 {[%emt 0:02:25]} h5 {[%emt 0:04:25]} 14. g3 {[%emt 0:20:47]} Rc8 {[%emt 0:03:20]} 15. Bh3 {[%emt 0:18:54]} Ne5 {[%emt 0:03:40]} 16. Nxe5 {[%emt 0:10:50]} fxe5 {[%emt 0:08:27]} 17. Rhf1 {[%emt 0:00:07]} b4 {[%emt 0:05:45]} 18. Ne2 {[%emt 0:00:09]} Qc5 {[%emt 0:00:23]} 19. Nc1 {[%emt 0:05:44]} a5 {[%emt 0:11:57]} 20. Nd3 {[%emt 0:00:16]} Qc6 {[%emt 0:00:27]} 21. Qf2 {[%emt 0:05:34]} Rc7 {[%emt 0:00:32]} 22. fxe6 {[%emt 0:01:28]} fxe6 {[%emt 0:00:35]} 23. Qf7+ {[%emt 0:02:33]} Kd8 {[%emt 0:00:02]} 24. Qf2 {[%emt 0:01:20]} Kc8 {[%emt 0:12:28]} 25. Qd2 {[%emt 0:00:09]} Qxe4 {[%emt 0:02:50]} 26. Rf7 {[%emt 0:00:38]} Rh7 {[%emt 0:01:51]} 27. Bg2 {[%emt 0:00:13]} Qg6 {[%emt 0:00:18]} 28. Rxh7 {[%emt 0:01:01]} Qxh7 {[%emt 0:00:04]} 29. Qe2 {[%emt 0:00:32]} Bc6 {[%emt 0:04:42]} 30. Nxe5 {[%emt 0:00:19]} dxe5 {[%emt 0:05:55]} 31. Qa6+ {[%emt 0:00:09]} Bb7 {[%emt 0:00:08]} 32. Bxb7+ {[%emt 0:00:14]} Rxb7 {[%emt 0:00:03]} 33. Qa8+ {[%emt 0:00:36]} Kc7 {[%emt 0:00:07]} 34. Qxa5+ {[%emt 0:00:13]} Kb8 {[%emt 0:01:32]} 35. Rd8+ {[%emt 0:00:25]} Bxd8 {[%emt 0:00:02]} 1/2-1/2

[Event "SVK ECo-C Extraliga 2018-19"]
[Site "Slovakia"]
[Date "2018.11.10"]
[Round "1"]
[White "Havlicek, Libor"]
[Black "Gazik, Viktor"]
[Result "0-1"]
[ECO "A04"]
[WhiteElo "2307"]
[BlackElo "2483"]
[Annotator "ChessBase"]
[PlyCount "62"]
[EventDate "2018.11.10"]
[EventType "team-tourn"]
[EventCountry "SVK"]
[SourceTitle "playchess.com"]
[Source "ChessBase"]
[SourceQuality "1"]
[WhiteTeam "Slovan"]
[BlackTeam "Podhajska"]
[TimeControl "40/5400+30:1800+30"]

1. Nf3 {[%emt 0:00:00]} g6 {[%emt 0:00:51]} 2. c4 {[%emt 0:02:05]} Bg7 {[%emt 0:00:09]} 3. e4 {[%emt 0:03:03]} e5 {[%emt 0:04:00]} 4. d4 {[%emt 0:03:51]} exd4 {[%emt 0:03:54]} 5. Nxd4 {[%emt 0:00:11]} Nc6 {[%emt 0:07:48]} 6. Nb5 {[%emt 0:07:44]} Nge7 {[%emt 0:11:06]} 7. Be2 {[%emt 0:01:42]} f5 {[%emt 0:09:21]} 8. exf5 {[%emt 0:01:24]} Nxf5 {[%emt 0:00:18]} 9. h4 {[%emt 0:01:10]} d6 {[%emt 0:10:58]} 10. Bg5 {[%emt 0:20:28]} Qd7 {[%emt 0:01:48]} 11. N1c3 {[%emt 0:00:16]} a6 {[%emt 0:04:54]} 12. Na3 {[%emt 0:00:48]} h6 {[%emt 0:03:18]} 13. Bd2 {[%emt 0:01:29]} Qf7 {[%emt 0:03:55]} 14. Bf3 {[%emt 0:00:24]} Ncd4 {[%emt 0:08:38]} 15. Be4 {[%emt 0:04:28]} O-O {[%emt 0:02:42]} 16. Bd5 {[%emt 0:02:14]} Be6 {[%emt 0:01:13]} 17. Qg4 {[%emt 0:01:36]} Bxd5 {[%emt 0:05:05]} 18. Nxd5 {[%emt 0:03:15]} Rae8+ {[%emt 0:02:01]} 19. Kd1 {[%emt 0:00:57]} b5 {[%emt 0:03:52]} 20. Nf4 {[%emt 0:00:08]} bxc4 {[%emt 0:06:12]} 21. Qxg6 {[%emt 0:05:11]} Qd7 {[%emt 0:00:29]} 22. Bc3 {[%emt 0:01:07]} Re4 {[%emt 0:01:21]} 23. g4 {[%emt 0:05:40]} Rf6 {[%emt 0:01:20]} 24. Qh5 {[%emt 0:01:27]} Qa4+ {[%emt 0:01:23]} 25. Kc1 {[%emt 0:01:17]} Rxf4 {[%emt 0:02:21]} 26. gxf5 {[%emt 0:00:05]} R6xf5 {[%emt 0:00:48]} 27. Qd1 {[%emt 0:00:09]} Qxd1+ {[%emt 0:01:39]} 28. Rxd1 {[%emt 0:00:05]} Ne2+ {[%emt 0:00:15]} 29. Kc2 {[%emt 0:00:35]} Nxc3 {[%emt 0:00:07]} 30. bxc3 {[%emt 0:00:20]} Rxf2+ {[%emt 0:00:09]} 31. Rd2 {[%emt 0:00:11]} R5f3 {[%emt 0:00:45]} 0-1

[Event "SVK ECo-C Extraliga 2018-19"]
[Site "Slovakia"]
[Date "2018.11.10"]
[Round "1"]
[White "Jancovic, Peter"]
[Black "Gazik, Igor"]
[Result "0-1"]
[ECO "E62"]
[WhiteElo "2299"]
[BlackElo "2220"]
[Annotator "NA"]
[PlyCount "68"]
[EventDate "2018.11.10"]
[EventType "team-tourn"]
[EventCountry "SVK"]
[SourceTitle "playchess.com"]
[Source "ChessBase"]
[SourceQuality "1"]
[WhiteTeam "Slovan"]
[BlackTeam "Podhajska"]
[TimeControl "40/5400+30:1800+30"]

1. d4 {[%emt 0:00:00]} Nf6 {[%emt 0:00:00]} 2. c4 {[%emt 0:00:00]} g6 {[%emt 0:00:49]} 3. Nf3 {[%emt 0:00:40]} Bg7 {[%emt 0:00:06]} 4. g3 {[%emt 0:00:46]} O-O {[%emt 0:00:26]} 5. Bg2 {[%emt 0:00:02]} d6 {[%emt 0:03:10]} 6. O-O {[%emt 0:00:11]} Nc6 {[%emt 0:00:36]} 7. Nc3 {[%emt 0:00:51]} Bf5 {[%emt 0:00:16]} 8. Nh4 {[%emt 0:06:10]} Bd7 {[%emt 0:02:52]} 9. e4 {[%emt 0:03:41] E62: King's Indian: Fianchetto: 6...c6 and Panno Variation (6...Nc6) without ...a6} (9. f4 Na5 10. b3 c5 11. dxc5 dxc5 12. Bd2 Bc6 13. Nd5 Nxd5 14. cxd5 Bb5 15. Rc1 Rc8 16. Bc3 Qb6 17. Bxg7 Kxg7 {1-0 (52) Gajewski,G (2628)-Fedorov,A (2598) Khanty-Mansiysk 2017 CBM 179 [Krasenkow,M]}) 9... e5 {[%emt 0:00:47]} 10. d5 {[%emt 0:00:58]} Nd4 {[%emt 0:04:37]} 11. f4 {[%emt 0:02:03]} c6 {[%emt 0:17:49]} 12. Kh1 $146 {[%emt 0:08:29]} ({Predecessor:} 12. fxe5 dxe5 13. Be3 c5 14. h3 Ne8 15. Ne2 Nd6 16. b3 b6 {0-1 (37) Chenchik,A (2100)-Savitskiy,S (2143) Khanty-Mansiysk 2009}) 12... cxd5 {[%emt 0:05:58]} 13. cxd5 {[%emt 0:00:38]} b5 {[%emt 0:00:24]} 14. fxe5 {[%emt 0:06:17]} dxe5 {[%emt 0:00:09]} 15. Nf3 {[%emt 0:00:51]} b4 {[%emt 0:18:57]} 16. Nxd4 exd4 {[%emt 0:00:53]} 17. Ne2 {[%emt 0:16:44]} Re8 {[%emt 0:03:47]} 18. Bg5 {[%emt 0:02:17]} Qb6 {[%emt 0:01:33]} 19. Bxf6 {[%emt 0:05:27]} Bxf6 {[%emt 0:00:07]} 20. Rc1 {[%emt 0:02:00]} Bg5 {[%emt 0:06:30]} 21. Nf4 {[%emt 0:02:56]} Bb5 {[%emt 0:01:11]} 22. Re1 {[%emt 0:02:23]} d3 {[%emt 0:05:44]} 23. e5 {[%emt 0:06:36]} Qd4 {[%emt 0:01:24]} (23... Rad8 $17 24. Qd2 Rc8) 24. Re4 {[%emt 0:07:38]} Qxb2 {[%emt 0:01:24]} 25. Rb1 {[%emt 0:02:44]} Qc3 {[%emt 0:07:01]} 26. Rexb4 {[%emt 0:10:14]} Bc4 {[%emt 0:00:24]} 27. d6 {[%emt 0:02:24]} Rad8 {[%emt 0:00:08]} 28. Rxc4 {[%emt 0:07:23]} Qxc4 {[%emt 0:00:05]} 29. Nxd3 {[%emt 0:01:04]} Rb8 {[%emt 0:02:00]} 30. Bb7 $2 {[%emt 0:02:17] [#]} (30. Rxb8 $15 Rxb8 31. h4) 30... Rxb7 $1 {[%emt 0:00:31]} 31. Rxb7 {[%emt 0:00:15]} Qd5+ {[%emt 0:00:29]} 32. Kg1 {[%emt 0:00:03]} Be3+ {[%emt 0:00:17]} 33. Kf1 {[%emt 0:00:06]} Qxb7 {[%emt 0:00:04]} 34. Qa4 {[%emt 0:00:21]} Qf3+ {[%emt 0:00:27]} 0-1

[Event "SVK ECo-C Extraliga 2018-19"]
[Site "Slovakia"]
[Date "2018.11.10"]
[Round "1"]
[White "Kukel, Imre"]
[Black "Takacs, Laszlo"]
[Result "0-1"]
[ECO "B90"]
[WhiteElo "2295"]
[BlackElo "2275"]
[Annotator "NA"]
[PlyCount "80"]
[EventDate "2018.11.10"]
[EventType "team-tourn"]
[EventCountry "SVK"]
[SourceTitle "playchess.com"]
[Source "ChessBase"]
[SourceQuality "1"]
[WhiteTeam "Komarno"]
[BlackTeam "Streda"]
[TimeControl "40/5400+30:1800+30"]

1. e4 {[%emt 0:00:00]} c5 {[%emt 0:00:00]} 2. Nf3 {[%emt 0:00:00]} d6 {[%emt 0:00:00]} 3. d4 {[%emt 0:00:00]} cxd4 {[%emt 0:00:00]} 4. Nxd4 {[%emt 0:00:58]} Nf6 {[%emt 0:00:00]} 5. Nc3 {[%emt 0:00:03] LiveBook: 99800 Partien} a6 {[%emt 0:00:00]} 6. Be3 {[%emt 0:00:06]} e6 {[%emt 0:00:00]} 7. g4 {[%emt 0:00:05]} e5 {[%emt 0:00:02]} 8. Nf5 {[%emt 0:00:03]} g6 {[%emt 0:00:12]} 9. g5 {[%emt 0:00:03]} gxf5 {[%emt 0:00:14] B81: Sizilianisch (Keres-Angriff)} 10. exf5 {[%emt 0:00:05]} d5 {[%emt 0:00:22]} 11. Qd3 $146 {[%emt 0:14:15]} ({Vorgänger:} 11. gxf6 $11 d4 12. Bxd4 (12. Bc4 Qc7 13. Qd3 dxe3 14. O-O-O {½-½ (14) Christiansen,J (2506)-Paravyan,D (2638) Pardubice 2018}) 12... Qxd4 13. Qxd4 exd4 14. Nd5) 11... d4 {[%emt 0:01:17]} 12. O-O-O {[%emt 0:02:40]} Qb6 {[%emt 0:02:09]} (12... Nd5 $17 13. Bxd4 Qxg5+ 14. Be3 Nxe3) 13. Na4 $2 {[%emt 0:20:37]} (13. gxf6 $11 dxe3 14. fxe3) 13... Qb4 {[%emt 0:19:54]} 14. b3 {[%emt 0:02:07]} (14. Bxd4 $17 exd4 15. gxf6) 14... Nfd7 {[%emt 0:07:54]} (14... Bd7 $19 {and Black stays clearly on top.} 15. gxf6 Bxa4 16. Bxd4 Qxd4 17. Qxd4 exd4 18. Re1+ Kd8 19. bxa4 Nd7) 15. Bg2 $2 {[%emt 0:06:36]} (15. c3 $17 Qa3+ 16. Kb1) 15... dxe3 {[%emt 0:05:26]} 16. Rhe1 {[%emt 0:00:19]} Qd4 {[%emt 0:05:59]} 17. Qxd4 {[%emt 0:06:12]} exd4 {[%emt 0:00:06]} 18. Rxd4 {[%emt 0:00:03]} Nc6 {[%emt 0:07:09]} 19. Rxe3+ {[%emt 0:02:12]} Kd8 {[%emt 0:01:59]} 20. Rde4 {[%emt 0:00:17]} Ba3+ {[%emt 0:01:43]} 21. Kb1 {[%emt 0:00:27]} Nc5 {[%emt 0:02:15]} 22. Rc4 {[%emt 0:02:48]} Nxa4 {[%emt 0:02:23]} 23. Rxa4 {[%emt 0:00:08]} Bd6 {[%emt 0:01:41]} 24. Rd3 {[%emt 0:02:56]} Kc7 {[%emt 0:00:12]} 25. Rd5 {[%emt 0:00:04]} Re8 {[%emt 0:02:11]} 26. Rh4 {[%emt 0:00:37]} Ba3 {[%emt 0:00:15]} 27. c3 {[%emt 0:00:15]} Re1+ {[%emt 0:01:27]} 28. Kc2 {[%emt 0:00:07]} Ne7 {[%emt 0:03:43]} 29. Ra5 {[%emt 0:00:09]} Bc1 $19 {[%emt 0:04:59]} 30. Be4 {[%emt 0:08:59]} Bxg5 {[%emt 0:01:33]} 31. Rg4 {[%emt 0:00:06]} Bf6 {[%emt 0:06:41]} 32. Kd2 {[%emt 0:00:21]} Rxe4 {[%emt 0:02:08]} 33. Rxe4 {[%emt 0:00:06]} b6 {[%emt 0:00:42]} 34. Raa4 {[%emt 0:03:09]} b5 {[%emt 0:01:39]} 35. Ra3 {[%emt 0:00:01]} Bxf5 {[%emt 0:00:16]} 36. Re1 {[%emt 0:01:31]} Rd8+ {[%emt 0:01:26]} 37. Ke3 {[%emt 0:00:17]} Nd5+ {[%emt 0:00:43]} 38. Kf3 {[%emt 0:00:02]} Bxc3 {[%emt 0:01:24]} 39. Rc1 {[%emt 0:01:25]} Kb6 {[%emt 0:00:44]} 40. b4 {[%emt 0:00:10]} Bb2 {[%emt 0:00:25]} 0-1

[Event "SVK ECo-C Extraliga 2018-19"]
[Site "Slovakia"]
[Date "2018.11.10"]
[Round "1"]
[White "Petran, Peter"]
[Black "Vymazal, Bronislav"]
[Result "1/2-1/2"]
[ECO "A00"]
[WhiteElo "2256"]
[BlackElo "2343"]
[Annotator "NA"]
[PlyCount "124"]
[EventDate "2018.11.10"]
[EventType "team-tourn"]
[EventCountry "SVK"]
[SourceTitle "playchess.com"]
[Source "ChessBase"]
[SourceQuality "1"]
[WhiteTeam "Slovan"]
[BlackTeam "Podhajska"]
[TimeControl "40/5400+30:1800+30"]

1. g3 {[%emt 0:00:00] Horn,Pe} d5 {[%emt 0:00:00]} 2. Bg2 {[%emt 0:00:00]} e5 {[%emt 0:01:17]} 3. c4 {[%emt 0:00:40]} d4 {[%emt 0:00:12]} 4. d3 {[%emt 0:00:10]} c5 {[%emt 0:01:03]} 5. Nf3 {[%emt 0:04:16]} Nc6 {[%emt 0:02:15]} 6. O-O {[%emt 0:00:06]} Bd6 {[%emt 0:08:34]} 7. e3 {[%emt 0:02:41]} Nge7 {[%emt 0:01:04]} 8. exd4 {[%emt 0:01:16]} cxd4 {[%emt 0:01:49]} 9. a3 {[%emt 0:03:07] A09: Réti Opening: 1 Nf3 d5 2 c4} a5 {[%emt 0:00:19]} 10. Nbd2 {[%emt 0:00:19]} O-O {[%emt 0:04:09]} 11. Re1 {[%emt 0:00:47]} Ng6 {[%emt 0:06:31]} (11... h6 12. Rb1 Rb8 13. Qa4 Bd7 14. Ne4 Bc7 15. Nc5 Be8 16. Qc2 Qc8 {1-0 (96) Mamedov,R (2679)-Shulman,Y (2617) Ningbo 2011}) 12. Rb1 {[%emt 0:01:53]} Re8 {[%emt 0:07:24]} 13. Qc2 {[%emt 0:01:55]} Bf8 {[%emt 0:02:34]} 14. b3 {[%emt 0:07:18] [#]} Bd7 $146 {[%emt 0:11:15]} ({Predecessor:} 14... Be6 15. c5 Bd5 16. b4 axb4 17. axb4 {0-1 (29) Panchenko,A (2430)-Ruban,V (2555) Sochi 1990 CBM 021 [Horn,Pe]}) 15. c5 {[%emt 0:02:32]} Rc8 {[%emt 0:00:47]} 16. b4 {[%emt 0:01:40]} axb4 {[%emt 0:04:50]} 17. axb4 {[%emt 0:00:07]} b5 {[%emt 0:00:31]} 18. h4 {[%emt 0:03:32]} h6 {[%emt 0:14:08]} 19. Nf1 {[%emt 0:07:08]} Qc7 {[%emt 0:02:58]} 20. N1h2 {[%emt 0:01:00]} Nge7 {[%emt 0:04:20]} 21. Bd2 {[%emt 0:10:00]} Nd5 {[%emt 0:03:47]} 22. h5 {[%emt 0:06:58]} Nf6 {[%emt 0:00:24]} 23. Qd1 {[%emt 0:02:33]} Bf5 {[%emt 0:01:33]} 24. Rb3 {[%emt 0:01:19]} Qd7 {[%emt 0:06:12]} 25. Nh4 {[%emt 0:00:53]} Bh7 {[%emt 0:00:18]} 26. Ra3 {[%emt 0:10:04]} e4 {[%emt 0:02:59]} 27. dxe4 {[%emt 0:00:54]} Nxe4 {[%emt 0:00:16]} 28. Bxe4 {[%emt 0:09:23]} (28. Qg4 $11 {remains equal.} Qxg4 29. Nxg4) 28... Bxe4 {[%emt 0:02:49]} 29. Ng2 {[%emt 0:04:26]} Bh7 {[%emt 0:02:52]} 30. Rxe8 {[%emt 0:02:38]} Rxe8 {[%emt 0:00:12]} 31. Nf4 {[%emt 0:05:36]} Ne5 {[%emt 0:00:46]} 32. Ra6 {[%emt 0:02:33]} Be4 {[%emt 0:01:41]} 33. f3 {[%emt 0:01:49]} Bb7 {[%emt 0:00:32]} 34. Ra7 $19 {[%emt 0:00:45]} Qc6 {[%emt 0:00:30]} 35. Kf2 {[%emt 0:00:44]} d3 {[%emt 0:01:12]} 36. Ra2 {[%emt 0:00:56]} Nc4 {[%emt 0:00:56]} 37. Qb3 {[%emt 0:00:40]} Ne5 {[%emt 0:02:41]} 38. Qd1 {[%emt 0:00:57]} Nc4 {[%emt 0:00:59]} 39. Qb3 {[%emt 0:00:06]} Qf6 {[%emt 0:01:13]} 40. Qc3 {[%emt 0:02:32]} Ne5 {[%emt 0:01:16]} 41. Ra1 {[%emt 0:04:09]} g5 {[%emt 0:16:12]} 42. hxg6 {[%emt 0:00:58]} fxg6 {[%emt 0:00:10]} 43. Re1 {[%emt 0:03:30]} Bg7 {[%emt 0:02:00]} 44. Qb3+ {[%emt 0:00:31]} Qf7 {[%emt 0:04:07]} 45. Qxf7+ {[%emt 0:01:56]} Kxf7 {[%emt 0:00:05]} 46. Bc3 {[%emt 0:02:29]} Rd8 {[%emt 0:02:45]} 47. Rd1 {[%emt 0:03:18]} Nxf3 {[%emt 0:03:08]} 48. Nxf3 {[%emt 0:08:00]} Bxc3 {[%emt 0:00:04]} 49. Rxd3 {[%emt 0:00:22]} Rxd3 {[%emt 0:00:05]} 50. Nxd3 {[%emt 0:00:05]} Be4 {[%emt 0:00:40]} 51. Nfe1 {[%emt 0:00:24]} Bd4+ {[%emt 0:01:29]} 52. Ke2 {[%emt 0:00:06]} Kf6 {[%emt 0:01:06]} 53. Nc2 {[%emt 0:00:22]} Bg1 {[%emt 0:02:27]} 54. Ne3 {[%emt 0:02:09]} h5 {[%emt 0:00:46]} 55. Nf2 {[%emt 0:00:48]} Bc6 {[%emt 0:00:15]} 56. Nh3 {[%emt 0:03:22]} Bxe3 {[%emt 0:00:51]} 57. Kxe3 {[%emt 0:00:01]} g5 {[%emt 0:00:09]} 58. Ng1 {[%emt 0:02:25]} h4 {[%emt 0:02:08]} 59. gxh4 {[%emt 0:00:13]} gxh4 {[%emt 0:00:04]} 60. Kf4 {[%emt 0:00:57]} Ke6 {[%emt 0:00:41]} 61. Nf3 {[%emt 0:03:27]} Kd5 {[%emt 0:00:27]} 62. Nxh4 {[%emt 0:00:38]} Kc4 {[%emt 0:00:10] Ke4} 1/2-1/2

[Event "SVK ECo-C Extraliga 2018-19"]
[Site "Slovakia"]
[Date "2018.11.10"]
[Round "1"]
[White "Banas, Kamil"]
[Black "Magat, Jozef"]
[Result "0-1"]
[ECO "B06"]
[WhiteElo "2255"]
[BlackElo "2112"]
[Annotator "NA"]
[PlyCount "118"]
[EventDate "2018.11.10"]
[EventType "team-tourn"]
[EventCountry "SVK"]
[SourceTitle "playchess.com"]
[Source "ChessBase"]
[SourceQuality "1"]
[WhiteTeam "Modra"]
[BlackTeam "Dunajov"]
[TimeControl "40/5400+30:1800+30"]

1. e4 {[%emt 0:00:00]} g6 {[%emt 0:00:00]} 2. d4 {[%emt 0:00:00]} Bg7 {[%emt 0:00:00]} 3. Nc3 {[%emt 0:02:03]} d6 {[%emt 0:01:27]} 4. f4 {[%emt 0:00:37]} c5 {[%emt 0:01:28]} 5. d5 {[%emt 0:03:00]} a6 {[%emt 0:04:41] A43: Alt-Benoni} (5... Nf6 6. Nf3 O-O 7. Bd3 e6 8. O-O exd5 9. exd5 Na6 10. h3 Nb4 11. Bc4 Bf5 12. Rf2 Ne4 13. Nxe4 Bxe4 14. Ng5 b5 15. Bxb5 Bxd5 16. c3 Qb6 17. Be2 {½-½ (41) Cioara,A (2477)-Chatalbashev,B (2570) Plovdiv 2012}) 6. a4 {[%emt 0:01:04]} e6 {[%emt 0:01:05] LiveBook: 5 Games} 7. Nf3 {[%emt 0:15:06]} Ne7 {[%emt 0:02:22]} 8. Bc4 {[%emt 0:04:01]} Bxc3+ $146 {[%emt 0:06:41]} ({Vorgänger:} 8... O-O 9. dxe6 Bxe6 10. Bxe6 fxe6 11. Ng5 Qd7 12. Qg4 e5 13. Qe6+ {½-½ (46) Jakel,W (2204)-Buchal,S (2338) Radebeul 2016}) 9. bxc3 {[%emt 0:00:01]} exd5 {[%emt 0:00:41]} 10. Bxd5 {[%emt 0:03:54]} Nxd5 {[%emt 0:01:42]} 11. Qxd5 {[%emt 0:01:27]} Nc6 {[%emt 0:01:33]} 12. c4 {[%emt 0:17:14]} Be6 {[%emt 0:12:19]} 13. Qd3 {[%emt 0:01:22]} Qf6 {[%emt 0:13:28]} (13... Qe7 $11) 14. Rb1 {[%emt 0:02:15]} Nb4 {[%emt 0:01:22]} (14... Qe7 $11 {keeps the balance.}) 15. Qd2 {[%emt 0:03:28]} Qe7 {[%emt 0:08:35]} 16. Bb2 {[%emt 0:06:52]} O-O {[%emt 0:08:50]} 17. O-O {[%emt 0:03:48]} f6 {[%emt 0:02:53]} 18. Qc3 {[%emt 0:03:21]} Nc6 {[%emt 0:11:36]} 19. Ba1 {[%emt 0:00:50]} Rab8 {[%emt 0:09:56]} 20. h3 {[%emt 0:00:19]} Nb4 {[%emt 0:05:02]} ({Black should try} 20... Qc7 $14) 21. Nd2 {[%emt 0:15:52]} Rbe8 {[%emt 0:01:12]} 22. g4 {[%emt 0:01:57]} Bd7 {[%emt 0:01:11]} 23. g5 {[%emt 0:01:07]} Rf7 {[%emt 0:00:31]} 24. gxf6 {[%emt 0:03:04]} Qe6 {[%emt 0:00:01]} 25. Rf3 {[%emt 0:00:54]} (25. f5 $1 $16 {[%cal Rf5e6]} gxf5 26. Rxf5) 25... Bxa4 {[%emt 0:00:50]} 26. f5 {[%emt 0:02:43]} gxf5 {[%emt 0:00:40]} 27. Rxf5 {[%emt 0:01:52]} Kh8 {[%emt 0:00:33]} 28. Rg5 {[%emt 0:01:36]} Bxc2 {[%emt 0:00:47]} 29. Rxb4 {[%emt 0:00:43]} cxb4 {[%emt 0:00:25]} 30. Qxc2 {[%emt 0:00:34]} Qxh3 {[%emt 0:00:31]} 31. Nf1 {[%emt 0:00:32]} b3 {[%emt 0:00:54]} 32. Qe2 {[%emt 0:00:46]} Rg8 {[%emt 0:00:35]} 33. Qd2 {[%emt 0:01:12]} Qe6 {[%emt 0:00:44]} 34. Rxg8+ {[%emt 0:01:16]} Kxg8 {[%emt 0:00:01]} 35. Qe2 $2 {[%emt 0:00:35]} (35. Qf4 $14) 35... Rxf6 {[%emt 0:00:50]} 36. Ng3 $2 {[%emt 0:01:38]} (36. Bxf6 $15 Qxf6 37. Qd3) 36... Rg6 {[%emt 0:00:46]} 37. Kf2 {[%emt 0:00:22]} Qh3 {[%emt 0:01:03]} 38. Qf3 {[%emt 0:00:25]} Qh2+ {[%emt 0:00:35]} 39. Qg2 {[%emt 0:00:08]} Qxg2+ {[%emt 0:00:33]} 40. Kxg2 {[%emt 0:00:01]} Kf7 {[%emt 0:00:29]} 41. Kf3 {[%emt 0:31:57]} a5 {[%emt 0:31:07]} 42. Bb2 {[%emt 0:00:00]} a4 {[%emt 0:00:00]} 43. Ne2 {[%emt 0:00:00]} Rg8 {[%emt 0:00:00]} 44. Nc3 {[%emt 0:00:00]} Ra8 {[%emt 0:00:00]} 45. Nb5 {[%emt 0:00:00]} Ra6 {[%emt 0:00:00]} 46. Ba3 {[%emt 0:00:00]} Rc6 {[%emt 0:00:00]} 47. Ke3 {[%emt 0:00:00]} Ke8 {[%emt 0:00:00]} 48. Kd3 {[%emt 0:00:00]} Kd7 {[%emt 0:00:00]} 49. Bc1 {[%emt 0:00:00]} h5 {[%emt 0:00:00]} 50. Bf4 {[%emt 0:00:00]} h4 {[%emt 0:00:00]} 51. Bg5 {[%emt 0:00:00]} h3 {[%emt 0:00:00]} 52. Bf4 {[%emt 0:00:00]} Rb6 {[%emt 0:00:33]} 53. Kc3 {[%emt 0:00:00]} Rc6 {[%emt 0:01:18]} 54. Kd3 {[%emt 0:00:00]} Rc8 {[%emt 0:00:58]} 55. Kc3 {[%emt 0:00:00]} Rf8 {[%emt 0:00:34]} 56. Bxd6 {[%emt 0:00:00]} Rf3+ {[%emt 0:00:17]} 57. Kb2 {[%emt 0:00:00]} Rf2+ {[%emt 0:00:33]} 58. Ka3 {[%emt 0:00:00]} Ra2+ {[%emt 0:01:06]} 59. Kb4 {[%emt 0:00:00]} b2 {[%emt 0:00:59]} 0-1

[Event "SVK ECo-C Extraliga 2018-19"]
[Site "Slovakia"]
[Date "2018.11.10"]
[Round "1"]
[White "Zambor, Norbert"]
[Black "Motycakova, Monika"]
[Result "1/2-1/2"]
[ECO "C77"]
[WhiteElo "2253"]
[BlackElo "2148"]
[Annotator "NA"]
[PlyCount "43"]
[EventDate "2018.11.10"]
[EventType "team-tourn"]
[EventCountry "SVK"]
[SourceTitle "playchess.com"]
[Source "ChessBase"]
[SourceQuality "1"]
[WhiteTeam "Prakovce"]
[BlackTeam "Liptovska"]
[TimeControl "40/5400+30:1800+30"]

{[%evp 9,30,-5,32767,32767,32767,32767,16,32767,32767,32767,14,8,10,12,18,32767,6,3,7,2,3,5,-12]} 1. e4 {[%emt 0:00:00]} e5 {[%emt 0:00:51]} 2. Nf3 {[%emt 0:00:00]} Nc6 {[%emt 0:00:08]} 3. Bb5 {[%emt 0:00:20]} a6 {[%emt 0:00:24]} 4. Ba4 {[%emt 0:00:56]} Nf6 {[%emt 0:00:12]} 5. d4 {[%emt 0:02:10]} exd4 {[%emt 0:17:13]} 6. O-O {[%emt 0:01:00]} Be7 {[%emt 0:04:07]} 7. e5 {[%emt 0:00:37]} Ne4 {[%emt 0:02:17]} 8. Nxd4 {[%emt 0:02:06]} Nxd4 {[%emt 0:05:54]} 9. Qxd4 {[%emt 0:00:23]} Nc5 {[%emt 0:00:14]} 10. Nc3 {[%emt 0:00:59]} O-O {[%emt 0:01:08]} 11. Bg5 {[%emt 0:01:54]} Nxa4 {[%emt 0:14:15]} 12. Bxe7 {[%emt 0:00:21]} Qxe7 {[%emt 0:01:20]} ({Nicht} 12... Nxc3 $2 13. Qh4 $18) 13. Nxa4 {[%emt 0:00:47] LiveBook: 7 Games} b6 {[%emt 0:00:25]} 14. Nc3 {[%emt 0:03:08]} Bb7 {[%emt 0:00:46]} 15. Rad1 {[%emt 0:02:06]} Rfe8 $11 {[%emt 0:07:26]} 16. f4 {[%emt 0:03:31]} Rad8 {[%emt 0:01:20]} 17. Nd5 {[%emt 0:55:15]} Bxd5 {[%emt 0:03:04]} 18. Qxd5 {[%emt 0:00:48]} d6 {[%emt 0:03:24]} 19. Rfe1 {[%emt 0:06:43]} dxe5 {[%emt 0:10:09]} 20. Qxe5 {[%emt 0:00:24]} Rxd1 {[%emt 0:02:23]} 21. Rxd1 {[%emt 0:00:14]} Qxe5 {[%emt 0:00:16]} 22. fxe5 {[%emt 0:00:16]} 1/2-1/2